Cogmind - Beta 16 @@@ ROGUE MODE // 2026.01.18 @ 16:46:19 Player: Mojosoup Result: Destroyed by G-73 Enforcer with Phase Gun Performance ------------- Evolutions (8) 4000 Regions Visited (26) 5200 Robots Destroyed (366) 1830 Value Destroyed (22535) 22535 Prototype IDs (29) 580 Alien Tech Used (2) 400 Bonus (13493) 13493 TOTAL SCORE: 48038 Bonus ------- Triggered High Security 500 High Alert Combat Kills 7313 Follower Combat Kills 1382 Entered Garrisons 1200 Used RIF Installer 3000 Met Zhirov 300 Friendly Fire -202 Cogmind --------- Core Integrity 0/1450 Matter 295/300 Energy 100/100 System Corruption 22% Temperature Hot (245) Movement Core (100) Ox1 Location -2/Research Parts ------- > --- POWER (1) -------- (None) > --- PROPULSION (5) --- (None) > --- UTILITY (14) ----- Machine Analyzer Enhanced Optical Array Advanced Target Analyzer Experimental Core Analyzer Improved System Shield Relay Coupler [Grunt] (11) > --- WEAPON (3) ------- Advanced Remote Datajack > --- INVENTORY (5) ---- Medium Treads Helical Railgun Compact Linear Accelerator Great Axe Peak State ------------ > --- POWER ------------ Reinforced Quantum Reactor > --- PROPULSION ------- Centrium Leg Heavy Shield Leg Heavy Shield Leg > --- UTILITY ---------- Advanced Heat Sink Advanced Heat Sink Huge Storage Unit Advanced Terrain Scanner Advanced Targeting Computer Advanced Weapon Cycler Improved Core Shielding Medium Insulated Plating Improved System Shield Advanced System Shield Relay Coupler [Grunt] Relay Coupler [Sentry] Relay Coupler [Specialist] Relay Coupler [Hunter] > --- WEAPON ----------- Enhanced Quantum Rifle Enhanced Hardcell Cannon Enhanced Hardcell Cannon > --- INVENTORY -------- Quantum Reactor Quantum Reactor Medium Treads Myomer Leg Biometal Leg Heavy Shield Leg Heavy Shield Leg Wheel Compact Wheel Compact Wheel Matter Compressor Relay Coupler [Grunt] Relay Coupler [Duelist] Relay Coupler [Sentry] Relay Coupler [Sentry] Long-range Tractor Beam Transdimensional Reconstructor Nova Cannon Heavy Rocket Launcher Heavy Rocket Launcher Improved Remote Datajack Advanced Remote Datajack Great Axe [Rating: 159] Favorites ----------- Power Light Antimatter Reactor Engine Improved Deuterium Engine Power Core Light Fission Core Reactor Light Antimatter Reactor Propulsion Heavy Treads Treads Heavy Treads Leg Flexi-carbon Leg Wheel Compact Wheel Hover Unit Gravmag System Flight Unit VTOL Module Utility Huge Storage Unit Device Advanced Heat Sink Storage Huge Storage Unit Processor Advanced Targeting Computer Hackware Relay Coupler [Grunt] Protection Hardened Medium Armor Plating Weapon Gauss Cannon Energy Gun Enhanced Quantum Rifle Energy Cannon Heavy Plasma Cannon Ballistic Gun KE Penetrator Ballistic Cannon Gauss Cannon Launcher Heavy Rocket Launcher Special Weapon Remote Datajack Impact Weapon Hammer Slashing Weapon Great Axe Build | -11 -10 -9 -9 -8 -8 -8 -8 -7 -7 -7 -7 -7 -7 -6 -6 -5 -5 -5 -4 -4 -4 -4 -3 -3 -3 -2 ------- Run | Yrd Mat Mat Min Mat Gar Mat Gar Fac Was Fac Gar Fac Gar Fac Gar Fac Was Fac Fac Upp Upp Zhi Pro Res Gar Res Slots Evolved 16 | . . 2 . 2 . . . 2 . . . . . 2 . 2 . . 2 . . . . 2 . 2 Power . | . . . . . . . . . . . . . . . . . . . . . . . . . . . Propulsion 3 | . . . . . . . . 2 . . . . . . . 1 . . . . . . . . . . Utility 12 | . . 2 . 1 . . . . . . . . . 2 . 1 . . 2 . . . . 2 . 2 Weapon 1 | . . . . 1 . . . . . . . . . . . . . . . . . . . . . . Parts Attached 304 | 7 12 6 . 3 19 7 16 21 7 . 5 8 13 6 18 24 6 6 6 6 . 5 5 8 31 59 Power 26 | 1 2 1 . . 3 . 2 1 . . . . 2 2 1 2 1 . . 1 . 1 . . 1 5 Engine 7 | 1 1 1 . . 2 . 1 1 . . . . . . . . . . . . . . . . . . Core 5 | . 1 . . . . . . . . . . . 1 . 1 2 . . . . . . . . . . Reactor 14 | . . . . . 1 . 1 . . . . . 1 2 . . 1 . . 1 . 1 . . 1 5 Propulsion 74 | 2 1 1 . . 2 2 3 7 2 . . . 3 2 4 10 2 1 2 . . . . 2 6 22 Treads 31 | . . . . . 1 . 2 6 2 . . . 3 . . . 2 1 2 . . . . 2 4 6 Leg 18 | . . . . . 1 . . . . . . . . 1 2 2 . . . . . . . . 1 11 Wheel 22 | 2 1 1 . . . 2 1 1 . . . . . 1 . 7 . . . . . . . . 1 5 Hover 2 | . . . . . . . . . . . . . . . 2 . . . . . . . . . . . Flight 1 | . . . . . . . . . . . . . . . . 1 . . . . . . . . . . Utility 119 | 2 3 3 . 2 7 1 8 4 3 . 2 5 5 2 5 7 3 2 3 2 . 3 5 4 19 19 Device 38 | 1 2 . . . 2 . 1 1 1 . 1 . . . . 3 1 . 2 . . . 2 2 8 11 Storage 7 | 1 1 . . . . . . 1 . . . 1 . . . 1 . 1 . . . 1 . . . . Processor 13 | . . 1 . . . . . 1 . . . . . 1 . . . 1 . . . . 1 1 2 5 Hackware 25 | . . . . . . . . 1 . . . 3 3 1 2 3 1 . . 2 . . 1 1 5 2 Protection 36 | . . 2 . 2 5 1 7 . 2 . 1 1 2 . 3 . 1 . 1 . . 2 1 . 4 1 Artifact . | . . . . . . . . . . . . . . . . . . . . . . . . . . . Weapon 85 | 2 6 1 . 1 7 4 3 9 2 . 3 3 3 . 8 5 . 3 1 3 . 1 . 2 5 13 Energy Gun 3 | 1 1 . . . . . . . . . . . . . . . . . . . . . . . 1 . Energy Cannon 4 | . . . . . . . . . . . . . . . 1 . . . . 2 . . . 1 . . Ballistic Gun 48 | 1 4 1 . 1 6 4 3 3 . . . . 2 . 5 5 . 2 . 1 . 1 . 1 . 8 Ballistic Cannon 16 | . . . . . . . . 4 1 . 3 . 1 . . . . . 1 . . . . . 3 3 Launcher 5 | . . . . . . . . 1 . . . 1 . . 1 . . . . . . . . . 1 1 Special Weapon 6 | . . . . . . . . 1 . . . 2 . . 1 . . 1 . . . . . . . 1 Impact Weapon 1 | . . . . . 1 . . . . . . . . . . . . . . . . . . . . . Slashing Weapon 2 | . 1 . . . . . . . 1 . . . . . . . . . . . . . . . . . Piercing Weapon . | . . . . . . . . . . . . . . . . . . . . . . . . . . . Special Melee Weapon . | . . . . . . . . . . . . . . . . . . . . . . . . . . . Unidentified Prototypes 20 | . 1 . . . . 1 . 1 1 . . . . 1 . 1 . . . . . 4 . 1 . 9 Parts Lost 128 | . 4 3 . 1 4 1 10 1 . . 1 . 4 . 15 22 . . . . . . . 6 11 45 Power 7 | . 1 . . . . . 1 . . . . . 1 . 1 1 . . . . . . . . . 2 Propulsion 41 | . 1 1 . . 1 1 3 . . . . . 2 . 5 8 . . . . . . . 1 4 14 Utility 48 | . 1 1 . . 3 . 4 1 . . 1 . . . 4 5 . . . . . . . 3 6 19 Weapon 32 | . 1 1 . 1 . . 2 . . . . . 1 . 5 8 . . . . . . . 2 1 10 Highest Loss Streak 15 | . 2 1 . 1 4 1 8 1 . . 1 . 2 . 12 12 . . . . . . . 4 7 15 To Critical Strikes 1 | . . . . . . . . . . . . . . . 1 . . . . . . . . . . . Average Backups 20 | 3 9 24 24 24 24 24 24 24 21 21 20 20 21 21 20 20 15 18 18 18 18 20 21 18 19 20 Power . | . . . 1 1 1 1 . 1 . . . . . . . . 1 1 1 1 1 1 1 1 1 1 Propulsion 2 | 1 . . . . . . . 1 2 3 2 2 2 . . 2 . 2 3 4 4 4 4 4 2 3 Utility 11 | . 3 9 10 9 10 13 13 13 12 12 13 14 15 15 14 13 11 13 10 8 8 8 9 6 9 7 Weapon 5 | . 4 13 13 14 12 9 9 7 5 5 4 3 3 5 4 3 2 2 2 3 4 5 5 4 4 6 Tool/Special . | . . . . . . . . . . . . . . . . . . . . . . . . . . . Unused Backups 75 | . 4 6 . 3 5 4 6 3 4 . 6 3 10 1 1 . 1 2 1 1 . 2 . 2 2 8 Power 3 | . . 1 . . 1 . . . . . . . . . . . . . . . . . . . . 1 Propulsion 7 | . 2 . . . . . . . . . 1 1 . . . . . . . . . 2 . 1 . . Utility 46 | . 1 1 . 3 4 1 5 1 3 . 3 2 8 1 1 . 1 2 1 1 . . . . 1 6 Weapon 19 | . 1 4 . . . 3 1 2 1 . 2 . 2 . . . . . . . . . . 1 1 1 Tool/Special . | . . . . . . . . . . . . . . . . . . . . . . . . . . . Average Slot Usage (%) 86 | . 99 99 100 99 99 97 98 97 91 84 82 84 86 98 77 80 65 66 72 72 73 72 76 87 86 85 Engine 1 | . 8 11 11 9 7 . 6 7 6 . . . . . . . . . . . . . . . . . Reactor 3 | . . . . . 1 9 2 . . 7 7 7 5 5 1 . 1 5 5 5 5 5 5 3 4 3 Treads 11 | . . . . . 2 5 14 26 21 15 15 15 17 20 4 . 4 11 15 15 15 15 15 14 13 4 Leg 1 | . . . . . 1 . . . . . . . . 1 5 5 3 . . . . . . . . 5 Wheel 4 | . 27 21 22 18 12 10 2 1 . . . . . 4 1 15 5 4 . . . . . . . 3 Device 8 | . 13 11 11 9 8 9 8 5 7 7 4 1 . . . 11 4 2 14 10 10 9 13 18 12 15 Storage 6 | . 14 11 11 9 9 9 9 7 7 7 7 7 7 6 6 5 5 5 5 5 5 5 5 4 4 3 Processor 6 | . . 10 11 9 9 9 9 7 7 7 7 7 7 12 8 5 3 2 . . . . 1 8 6 7 Hackware 11 | . . . . . . . . 6 7 7 3 9 15 20 10 9 17 11 10 10 10 10 11 14 26 23 Protection 8 | . . 11 11 17 18 18 17 9 7 7 13 11 6 6 5 . . 5 5 8 10 10 7 7 3 3 Ballistic Gun 9 | . 19 21 22 26 21 27 25 12 . . . . 1 12 13 10 . 2 10 12 15 13 14 13 1 4 Ballistic Cannon 4 | . . . . . . . . 6 17 15 13 14 13 6 . 2 . . 3 . . . . . 5 4 Slashing Weapon 1 | . . . . . . . . . 3 . 6 . 6 . 2 . . . . . . 1 . . 1 . Peak Build Rating 159 | 7 15 19 17 24 33 36 38 51 64 64 71 67 68 70 67 68 86 97 117 117 113 117 119 131 139 159 Average Rating 75 | 4 9 18 17 22 26 32 32 46 56 64 66 66 61 64 61 51 55 92 113 113 113 113 117 124 127 132 On Entrance 62 | . 7 13 17 17 23 33 36 30 51 64 64 67 66 57 63 65 38 85 97 117 113 113 117 116 107 113 Avg Prop Armor Cover (%) 7 | . . . . . 5 6 6 10 . . . . . 2 3 13 9 . . . . . . . 12 9 Naked Turns . | . . . . . . . . . . . . . . . . . . . . . . . . . . . Heaviest Build 167 | 13 92 100 98 108 109 115 117 115 120 119 136 133 123 121 149 142 154 162 166 166 161 164 167 127 157 155 Greatest Support 185 | 20 26 32 32 32 32 20 40 112 140 140 140 140 140 66 66 74 140 163 170 170 170 170 170 175 170 185 Greatest Overweight (x) 29 | . 3 3 3 3 6 11 10 3 1 . . . 1 1 29 10 6 1 . . . . . . 5 7 Average Overweight (x) 1 | . 1 3 3 3 4 5 4 . . . . . . 1 4 2 4 . . . . . . . . 2 Largest Inventory Capacity 25 | 8 25 25 25 25 25 25 25 25 25 25 25 25 25 25 25 25 25 25 25 25 25 25 25 25 25 25 Average Capacity 24 | 6 15 25 25 25 25 25 25 25 25 25 25 25 25 25 25 25 25 25 25 25 25 25 25 25 25 24 Most Carried 25 | 6 18 25 24 25 25 25 25 25 25 25 25 25 25 25 25 25 25 25 25 25 25 25 25 25 25 25 Average Carried 23 | 3 9 24 24 24 24 24 24 24 24 25 24 24 24 24 21 20 16 24 24 24 24 24 24 24 23 21 Final Capacity 25 | 8 25 25 25 25 25 25 25 25 25 25 25 25 25 25 25 25 25 25 25 25 25 25 25 25 25 5 Final Carried 25 | 5 17 24 24 24 25 25 24 25 25 25 25 24 25 25 22 16 23 25 25 24 25 25 25 22 22 4 Class Distribution -------------------- 18% | Scavenger-Tank 16% | Bothacker-Mutant 14% | Botlord-Mutant 13% | Botlord-Gunner 10% | Mutant 10% | Bothacker-Tank 5% | Botlord-Tank 4% | Bothacker-Gunner 3% | Tank Dominant Class ---------------- Mutant | -10/Materials Mutant | -9/Materials Mutant | -9/Mines Tank | -8/Materials Mutant | -8/Garrison Tank | -8/Materials Scavenger-Tank | -8/Garrison Bothacker-Gunner | -7/Factory Bothacker-Mutant | -7/Waste Bothacker-Tank | -7/Factory Bothacker-Mutant | -7/Garrison Botlord-Tank | -7/Factory Bothacker-Mutant | -7/Garrison Botlord-Gunner | -6/Factory Botlord-Mutant | -6/Garrison Botlord-Gunner | -5/Factory Botlord-Mutant | -5/Waste Bothacker-Mutant | -5/Factory Bothacker-Tank | -4/Factory Bothacker-Tank | -4/Upper Caves Scavenger-Tank | -4/Upper Caves Scavenger-Tank | -4/Zhirov Scavenger-Tank | -3/Proximity Caves Scavenger-Tank | -3/Research Bothacker-Mutant | -3/Garrison Botlord-Gunner | -2/Research Resources | -11 -10 -9 -9 -8 -8 -8 -8 -7 -7 -7 -7 -7 -7 -6 -6 -5 -5 -5 -4 -4 -4 -4 -3 -3 -3 -2 ----------- Run | Yrd Mat Mat Min Mat Gar Mat Gar Fac Was Fac Gar Fac Gar Fac Gar Fac Was Fac Fac Upp Upp Zhi Pro Res Gar Res Matter Collected 16572 | 238 498 267 38 123 567 268 888 737 357 20 486 641 1302 258 855 1066 241 186 49 482 72 90 443 577 1326 4497 Remotely 1885 | . . . . . . . . . . . . . . . . . . . . . . . . . . 1885 Salvage Created 17901 | 23 702 850 44 196 842 342 1067 628 566 . 265 375 915 58 374 1111 548 333 47 412 89 271 541 894 1931 4477 Parts 784 | 3 31 52 4 3 40 21 79 44 5 . 8 13 39 6 30 48 11 20 3 15 3 3 25 48 55 175 Haulers Intercepted 5 | . 1 . . . . 1 . 1 . . . . . . . . . . . . . . . . . 2 Recyclers Shooed 7 | . . . . . . . . . . . . 1 . . . 4 . . . . . . . . . 2 Parts Field Recycled . | . . . . . . . . . . . . . . . . . . . . . . . . . . . Retrieved Matter . | . . . . . . . . . . . . . . . . . . . . . . . . . . . Parts Self-Destructed 51 | . . . . . . . . . . . . . . . . . . . . 26 3 2 20 . . . Prevented . | . . . . . . . . . . . . . . . . . . . . . . . . . . . Parts Restored . | . . . . . . . . . . . . . . . . . . . . . . . . . . . Kills | -11 -10 -9 -9 -8 -8 -8 -8 -7 -7 -7 -7 -7 -7 -6 -6 -5 -5 -5 -4 -4 -4 -4 -3 -3 -3 -2 ------- Run | Yrd Mat Mat Min Mat Gar Mat Gar Fac Was Fac Gar Fac Gar Fac Gar Fac Was Fac Fac Upp Upp Zhi Pro Res Gar Res Combat Hostiles Destroyed 320 | . 16 18 1 4 17 6 27 16 . . 6 12 22 1 19 14 2 9 1 8 1 . 11 13 25 71 Guns 180 | . 16 18 1 4 17 6 27 9 . . . . 4 1 5 12 . 1 1 5 1 . 6 13 3 30 Cannons 96 | . . . . . . . . 7 . . 6 10 18 . 3 1 2 4 . 1 . . . . 18 26 AOE 42 | . . . . . . . . . . . . 2 . . 11 . . 4 . 2 . . 5 . 3 15 Classes Destroyed 24 | 1 5 2 . . 1 2 3 1 . . . . 1 . 1 . 1 . . . . . . . . 6 Worker 11 | . 1 1 . . . 2 . . . . . . . 1 . 2 . . . . . . . . . 4 Builder 11 | . . . . . . . . 1 . . . . . . . 2 . . . . . . . 2 . 6 Tunneler 2 | 1 . . . . . . . . . . . . . . . . . . . . . . . . . 1 Hauler 5 | . 1 . . . . 1 . 1 . . . . . . . . . . . . . . . . . 2 Recycler 10 | . 1 1 . . . . . . . . . 1 . . . 3 . . . . . . . . . 4 Mechanic 3 | . . . . . . . . . . . . . . . . . . . . . . . . . . 3 Operator 2 | . . . . . . 1 . . . . . . . . . . . . . . . . . . 1 . Watcher 1 | . . . . . . 1 . . . . . . . . . . . . . . . . . . . . Swarmer 60 | . 3 3 . . . 2 6 3 . . . 2 6 . 6 5 . 4 . 1 . . 5 3 6 5 Cutter 6 | . . . . . . . 3 . . . . . . . 3 . . . . . . . . . . . Saboteur 2 | . . . . . . . . . . . . . . . . . . . . . . . . . . 2 Grunt 105 | . 13 11 1 3 11 2 5 6 . . 3 3 1 . 3 4 . . . 2 . . 2 4 8 23 Brawler 8 | . . 1 . 1 2 . 1 1 . . . . . . . . . . . . . . . . 1 1 Duelist 5 | . . . . . . . 1 . . . . . . . . . . . . 1 . . 1 . . 2 Protector 1 | . . . . . . . . . . . . . . . . . . . . . . . . . . 1 Sentry 43 | . . 3 . . 3 1 8 4 . . 3 3 3 . 1 . . 1 1 2 1 . . 1 3 5 Specialist 4 | . . . . . . . . . . . . . 2 . . . . . . . . . . . 2 . Hunter 26 | . . . . . 1 1 1 . . . . 2 3 . 2 1 . 2 . . . . 2 . 4 7 Programmer 48 | . . . . . . . 2 2 . . . 2 7 1 3 4 . 2 . 2 . . . 5 . 18 Heavy 1 | . . . . . . . . . . . . . . . . . . . . . . . . . . 1 Behemoth 4 | . . . . . . . . . . . . . . . 1 . . . . . . . 1 . 1 1 Compactor 2 | . . . . . . . . . . . . . . . . . 2 . . . . . . . . . Striker 2 | . . . . . . . . . . . . . . . . . . . . . . . . . . 2 Executioner 3 | . . . . . . . . . . . . . . . . . . . . . . . . . . 3 Thug 1 | . . . . . . . . . . . 1 . . . . . . . . . . . . . . . Best Kill Streak 18 | 1 4 4 1 2 4 3 5 3 . . 2 3 4 1 8 5 1 4 1 4 1 . 5 12 5 18 Combat Bots Only 15 | . 3 4 1 2 4 3 5 3 . . 2 2 4 1 8 5 1 4 1 4 1 . 5 5 5 15 Max Kills in Single Turn 4 | 1 1 1 1 1 1 2 2 2 . . 1 1 1 1 3 1 1 4 1 2 1 . 4 1 2 3 Gunslinging 1 | . . . . . . . . 1 . . . . . . . . . . . . . . . . . . Exploded 4 | . . . . . . . . . . . . 1 . . 3 . . 4 . 2 . . 4 . 2 3 Melee . | . . . . . . . . . . . . . . . . . . . . . . . . . . . Uniques/NPCs Destroyed . | . . . . . . . . . . . . . . . . . . . . . . . . . . . Combat | -11 -10 -9 -9 -8 -8 -8 -8 -7 -7 -7 -7 -7 -7 -6 -6 -5 -5 -5 -4 -4 -4 -4 -3 -3 -3 -2 -------- Run | Yrd Mat Mat Min Mat Gar Mat Gar Fac Was Fac Gar Fac Gar Fac Gar Fac Was Fac Fac Upp Upp Zhi Pro Res Gar Res Hostile Shots Fired 2714 | . 66 57 3 26 97 31 156 166 . . 63 100 208 4 185 165 . 76 7 53 13 . 80 114 298 746 Missed 761 | . 17 15 1 9 24 6 40 82 . . 23 34 50 1 49 27 . 15 3 19 6 . 22 27 84 207 Deflected 35 | . . . . . . . . . . . . . . . . . . . . . . . . . . 35 Hits 1953 | . 49 42 2 17 73 25 116 84 . . 40 66 158 3 136 138 . 61 4 34 7 . 58 87 214 539 Melee 25 | . . . . . 1 . 6 1 . . . . . . 7 . . . . 2 . . 1 . 4 3 Projectile 1928 | . 49 42 2 17 72 25 110 83 . . 40 66 158 3 129 138 . 61 4 32 7 . 57 87 210 536 AOE 11 | . . . . . . . 6 . . . 3 . . . 2 . . . . . . . . . . . Critical Strikes 95 | . 2 1 . . 6 . 2 1 . . . . 2 1 8 9 . . . 3 . . 2 2 6 50 Actively Blocked 1 | . . . . . . . . . . . . . . . . . . . . . . . . 1 . . Part Disruptions 4 | . . . . . . . . . . . . . 1 . . . . . . . . . . . . 3 Damage Taken 35019 | . 596 532 24 232 1031 327 1802 787 . . 571 855 1974 47 2490 2551 . 675 93 671 141 . 1511 1964 4075 12070 Core 4029 | . 201 65 12 27 175 . 118 76 . . 46 72 207 . 505 418 . . . 17 . . 51 248 376 1415 Absorbed by Shields 41 | . . . . . . . . . . . . . . . . . . 41 . . . . . . . . Reduced by Siege Mode 958 | . . . . . . . . . . . . . 80 . . . . 22 . . . . 39 98 453 266 Redirected to Shielding 193 | . . . . . . . . . . . . . . . . . . . . . . . . 164 11 18 Ignored by Resistances 963 | . . . . 34 128 20 46 56 . . . . . . 12 . . 442 . 120 . . . . . 105 Regen/Repaired (Parts) 130 | . . . . . . . . . 18 . 23 47 . . . . . . . . . . . . . 42 Core Remaining (%) 58 | 100 19 . 80 . . . 41 . . . . . 42 . 40 . . 58 . . . . 94 . 52 . Volleys Fired 1099 | 3 69 42 2 20 49 21 63 47 1 . 33 47 74 2 52 66 27 37 5 22 6 . 31 43 111 226 Largest 3 | 2 2 2 2 3 3 3 3 3 1 . 2 2 3 3 3 3 1 2 3 3 3 . 3 3 3 3 Hottest 229 | 60 70 46 43 63 69 71 76 103 5 . 80 80 108 108 90 91 90 123 112 166 94 . 96 176 229 181 Shots Fired 2376 | 6 137 83 4 56 132 63 180 122 1 . 55 79 152 6 80 137 26 50 15 42 18 . 70 97 205 560 Gun 1510 | 6 137 83 4 56 132 63 180 71 . . . . 45 4 46 110 . 12 10 28 18 . 65 90 18 332 Cannon 761 | . . . . . . . . 49 . . 49 64 103 2 18 27 18 34 5 7 . . . 3 178 204 Launcher 51 | . . . . . . . . . . . . 3 . . 15 . . . . 3 . . 4 . 8 18 Special 54 | . . . . . . . . 2 1 . 6 12 4 . 1 . 8 4 . 4 . . 1 4 1 6 Kinetic 1976 | 3 78 83 4 56 132 63 180 120 . . 49 64 148 6 58 128 . 12 15 31 18 . 65 90 103 470 Thermal 295 | 3 59 . . . . . . . . . . . . . 6 9 18 34 . 4 . . . 3 93 66 Explosive 51 | . . . . . . . . . . . . 3 . . 15 . . . . 3 . . 4 . 8 18 Electromagnetic . | . . . . . . . . . . . . . . . . . . . . . . . . . . . Robot Hit Streak 40 | 3 10 30 12 31 18 14 12 14 3 . 14 23 19 8 11 13 16 8 15 9 11 . 17 15 40 14 Robot Miss Streak 7 | 1 4 1 . 2 3 4 6 3 . . 2 2 5 1 4 2 2 3 1 2 2 . 2 2 3 7 Penetration Max 2 | . . . . . . . 1 . . . 1 . 1 . . 1 . . . . . . . 1 . 2 Secondary Targets 26 | . 1 2 . 1 2 2 3 1 . . . . 1 . 1 3 . . . . . . 2 3 . 4 Max Gunslinging Chain 1 | . 1 1 . 1 1 1 1 1 . . . . 1 . 1 1 . . . . . . 1 1 . 1 Shots Hit Robots 1724 | 5 92 68 4 45 92 37 107 89 6 . 39 57 136 4 63 108 22 33 12 28 12 10 56 73 177 349 Core Hits 823 | 2 39 26 2 12 44 21 46 45 4 . 12 21 38 4 57 34 6 13 3 23 5 4 29 34 84 215 Critical Kills 22 | . . 2 . . 2 . 1 1 . . . . . . . 1 . . . . . . 2 3 . 10 Critical Parts Destroyed 16 | . . . . . . . . 1 . . . . 2 . . . . 1 . . . . 2 4 1 5 Critical Strikes 92 | . 1 2 . . 2 . 1 4 1 . 5 8 15 . 3 4 . 1 . 1 . . 5 7 8 24 Burn 1 | . 1 . . . . . . . . . . . . . . . . . . . . . . . . . Meltdown 1 | . . . . . . . . . . . . . . . . 1 . . . . . . . . . . Destroy 38 | . . 2 . . 2 . 1 2 . . . . 2 . . . . 1 . . . . 5 7 1 15 Blast 45 | . . . . . . . . 2 . . 5 8 11 . 3 3 . . . 1 . . . . 3 9 Sever 7 | . . . . . . . . . 1 . . . 2 . . . . . . . . . . . 4 . Melee Attacks 413 | . 2 . . . 115 . 9 . 5 . 66 . 90 . 32 6 . . . . . 10 . . 73 5 Impact 124 | . . . . . 115 . 9 . . . . . . . . . . . . . . . . . . . Slashing 289 | . 2 . . . . . . . 5 . 66 . 90 . 32 6 . . . . . 10 . . 73 5 Piercing . | . . . . . . . . . . . . . . . . . . . . . . . . . . . Sneak Attacks 1 | . . . . . . . . . . . . . . . . . . . . . . . . . 1 . Combat Hostiles . | . . . . . . . . . . . . . . . . . . . . . . . . . . . Follow-up Attacks . | . . . . . . . . . . . . . . . . . . . . . . . . . . . Damage Inflicted 54132 | 43 1032 1052 53 451 1230 572 1847 1957 175 . 1050 1444 4167 114 3139 2610 570 1225 300 877 280 780 1801 2056 8438 16869 Guns 21722 | 43 1021 1052 53 451 1230 572 1847 920 . . . . 913 101 874 1798 . 179 195 376 280 . 1218 1945 436 6218 Cannons 18382 | . . . . . . . . 925 . . 1050 1240 1958 . 399 760 570 711 105 164 . . . 76 4137 6287 Explosions 8944 | . . . . . . . . 104 . . . 172 . . 1866 . . 335 . 337 . . 583 . 1280 4267 Melee 4841 | . . . . . . . . . 175 . . . 1270 . . 31 . . . . . 780 . . 2585 . Ramming 243 | . 11 . . . . . . 8 . . . 32 26 13 . 21 . . . . . . . 35 . 97 Kinetic 34184 | 22 512 1052 53 451 1230 572 1847 1845 . . 1050 1240 2871 101 1083 2296 . 179 300 433 280 . 1218 1945 2676 10928 Thermal 6359 | 21 509 . . . . . . 104 . . . . . . 190 262 570 1046 . 107 . . . 76 1897 1577 Explosive 8505 | . . . . . . . . . . . . 172 . . 1866 . . . . 337 . . 583 . 1280 4267 Electromagnetic . | . . . . . . . . . . . . . . . . . . . . . . . . . . . Impact . | . . . . . . . . . . . . . . . . . . . . . . . . . . . Slashing 4841 | . . . . . . . . . 175 . . . 1270 . . 31 . . . . . 780 . . 2585 . Piercing . | . . . . . . . . . . . . . . . . . . . . . . . . . . . Highest Corruption 22 | . . . . . . . 1 1 1 1 1 2 6 . 2 6 20 20 . . . . . 2 7 22 Average Corruption 4 | . . . . . . . 1 1 1 1 1 1 2 . 1 2 17 20 . . . . . 1 2 9 Corruption Purged . | . . . . . . . . . . . . . . . . . . . . . . . . . . . Corruption Blocked . | . . . . . . . . . . . . . . . . . . . . . . . . . . . Effects 313 | . . . . . . . 6 5 5 3 18 14 40 . 28 6 14 43 . . . . . 4 40 87 Message Errors 76 | . . . . . . . 2 1 3 3 4 3 6 . 10 1 2 14 . . . . . . 6 21 Matter Fused 73 | . . . . . . . 2 . 2 . 5 3 14 . 9 2 5 11 . . . . . 3 7 10 Heat Flow Errors 35 | . . . . . . . . . . . 3 4 3 . 2 1 1 3 . . . . . . 7 11 Energy Discharges 31 | . . . . . . . 1 . . . 1 . 4 . 5 . . 8 . . . . . . 6 6 Parts Rejected 3 | . . . . . . . . . . . . . . . . . 1 . . . . . . . . 2 Parts Fused 6 | . . . . . . . . 1 . . . 1 . . . . . . . . . . . . 3 1 Data Loss (minor) 32 | . . . . . . . . . . . . 3 5 . 2 1 1 1 . . . . . . 7 12 Data Loss (major) 15 | . . . . . . . 1 . . . 1 . 3 . . . . 2 . . . . . . 1 7 Misfires 17 | . . . . . . . . 2 . . 2 . 3 . . . . 2 . . . . . 1 1 6 Alerts 6 | . . . . . . . . . . . 1 . . . . 1 . 1 . . . . . . 1 2 Misdirections 6 | . . . . . . . . . . . . . . . . . 3 . . . . . . . . 3 Weapon Failures 13 | . . . . . . . . 1 . . 1 . 2 . . . 1 1 . . . . . . 1 6 Overload Shots . | . . . . . . . . . . . . . . . . . . . . . . . . . . . Overflow Damage 988 | . . . . . . . . . . . 34 18 63 . 35 66 . 86 . 20 . . 20 . 416 230 Projectiles 494 | . . . . . . . . . . . 34 18 30 . . 66 . 34 . 20 . . . . 91 201 Explosions 140 | . . . . . . . . . . . . . . . 35 . . 52 . . . . 20 . 4 29 Melee 354 | . . . . . . . . . . . . . 33 . . . . . . . . . . . 321 . Knockbacks 95 | . . . . . . . . 4 . . 5 12 11 . . 4 . . . 1 . . . . 18 40 Impact 1 | . . . . . . . . . . . . . . . . . . . . . . . . . . 1 Kinetic 87 | . . . . . . . . 4 . . 5 11 11 . . 4 . . . 1 . . . . 16 35 Secondary 7 | . . . . . . . . . . . . 1 . . . . . . . . . . . . 2 4 Self-Inflicted Damage 154 | . 5 . . . . . . . . . . . . . 83 7 . . . 36 . . . . . 23 Shots 4 | . . . . . . . . . . . . . . . 3 . . . . 1 . . . . . . Rammed 23 | . 1 . . . . . . 2 . . . 3 2 4 . 1 . . . . . . . 3 . 7 Targets Rammed 28 | . 1 . . . . . . 2 . . . 3 2 4 . 3 . . . . . . . 3 . 10 Kicked 5 | . . . . . . . . . . . . . . . . 2 . . . . . . . . . 3 Crushed . | . . . . . . . . . . . . . . . . . . . . . . . . . . . Highest Temperature 418 | 40 189 25 16 222 321 199 205 180 . . 228 246 296 255 267 301 232 252 40 158 18 . 387 117 418 373 Average Temperature 86 | 21 57 10 10 91 165 74 64 43 . . 56 83 101 84 68 93 85 92 19 56 7 . 169 43 104 102 Received Heat Transfer 6614 | . 330 207 12 153 666 90 387 276 . . 135 198 216 . 207 357 . 27 . 117 42 . 487 240 417 2050 Effects 14 | . . . . . 1 . . . . . . 2 1 . . . . . . . . . 4 . 3 3 Shutdowns 1 | . . . . . . . . . . . . . . . . . . . . . . . 1 . . . Energy Bleed 3 | . . . . . . . . . . . . . 1 . . . . . . . . . . . 1 1 Interference 7 | . . . . . . . . . . . . 2 . . . . . . . . . . 3 . 1 1 Short Circuit 2 | . . . . . 1 . . . . . . . . . . . . . . . . . . . 1 . Damage (minor) 1 | . . . . . . . . . . . . . . . . . . . . . . . . . . 1 Siege Activations 32 | . . . . . . . . . . . . . 4 . . . . 3 . . 3 . 5 1 11 5 Total Turns 619 | . . . . . . . . . . . . . 64 . . . . 51 . . 72 . 83 46 224 79 Longest Duration 46 | . . . . . . . . . . . . . 37 . . . . 26 . . 38 . 39 46 46 34 Martial Activations . | . . . . . . . . . . . . . . . . . . . . . . . . . . . Shielding Activations 6 | . . . . . . . . . . . . . . . . . . . . . . . . . . 6 Total Turns 195 | . . . . . . . . . . . . . . . . . . . . . . . . . . 195 Longest Duration 73 | . . . . . . . . . . . . . . . . . . . . . . . . . . 73 Robots Disrupted . | . . . . . . . . . . . . . . . . . . . . . . . . . . . Combat Hostiles . | . . . . . . . . . . . . . . . . . . . . . . . . . . . Robots Corrupted 1 | . . . . . . . . . . . . . . . . . . . . . . . . . . 1 Combat Hostiles . | . . . . . . . . . . . . . . . . . . . . . . . . . . . Parts Fried 3 | . . . . . . . . . . . . . . . . . . . . . . . . . . 3 Impact Corruptions 2 | . . . . . . . . . . . . . . . . . . . . . . . . . . 2 Robots Melted 2 | . . . . . . . . . . . . . . . . 1 . . . . . . . . 1 . Combat Hostiles 2 | . . . . . . . . . . . . . . . . 1 . . . . . . . . 1 . Parts Melted 11 | . 1 . . . . . . . . . . . . . . 5 . 1 . . . . . . 2 2 Heat Transferred 7893 | 50 1281 . . . . . . 50 . . . . . . 146 400 900 1350 . 111 . . . 74 1755 1776 Parts Sabotaged 3 | . . . . . . . . . . . . . . . . . . . . . . . . . . 3 Parts Stolen . | . . . . . . . . . . . . . . . . . . . . . . . . . . . Parts Stripped . | . . . . . . . . . . . . . . . . . . . . . . . . . . . Power Chain Reactions . | . . . . . . . . . . . . . . . . . . . . . . . . . . . Alert | -11 -10 -9 -9 -8 -8 -8 -8 -7 -7 -7 -7 -7 -7 -6 -6 -5 -5 -5 -4 -4 -4 -4 -3 -3 -3 -2 ------- Run | Yrd Mat Mat Min Mat Gar Mat Gar Fac Was Fac Gar Fac Gar Fac Gar Fac Was Fac Fac Upp Upp Zhi Pro Res Gar Res Maximum Alert Level 5 | . . 1 . . 2 1 3 2 . 2 5 4 5 4 4 3 1 1 . . . . . . 5 5 Low Security (%) 23 | 100 100 44 100 100 42 . 15 . 100 66 . . . . . . 92 49 100 . . . . 100 10 . Level 1 13 | . . 55 . . 29 100 24 52 . 25 4 . . . . . 7 50 . . . . . . 17 . Level 2 11 | . . . . . 27 . 34 47 . 7 16 . . . 9 30 . . . . . . . . 18 1 Level 3 31 | . . . . . . . 24 . . . 42 72 45 93 53 69 . . . . . . . . 22 58 Level 4 14 | . . . . . . . . . . . 33 27 36 6 36 . . . . . . . . . 22 15 Level 5 2 | . . . . . . . . . . . 3 . 17 . . . . . . . . . . . 7 . High Security 2 | . . . . . . . . . . . . . . . . . . . . . . . . . . 24 Max Security . | . . . . . . . . . . . . . . . . . . . . . . . . . . . Peak Influence 2357 | 5 121 270 88 66 629 337 987 558 186 407 1693 1202 2122 1113 1565 821 208 297 126 . . . . 173 1795 2357 Initial 1113 | . . 22 88 10 29 306 156 518 186 . 277 888 821 1113 604 821 208 54 126 . . . . 32 125 1009 Average 696 | . 38 165 53 22 292 280 517 405 56 119 1050 1073 1262 974 1052 722 147 140 76 . . . . 18 792 1186 Influence Increases 15100 | 5 461 513 20 140 640 190 931 514 . 465 1626 862 1361 36 1111 441 . 490 38 231 80 10 260 371 1820 2484 Destroy 0b10 Robot/C 7200 | . 320 360 20 80 340 120 540 320 . 180 560 420 440 20 380 280 . 200 20 200 20 . 220 260 500 1400 Destroy 0b10 Robot/NC 330 | 5 15 10 . . . 25 . 10 . 10 . 10 20 5 . 35 . . . . . 10 . 10 55 110 Destroy Leader 1184 | . 72 80 . 20 20 44 20 92 . 30 40 100 40 10 30 50 . 50 10 20 . . 40 60 70 286 Allied During Kill 643 | . . . . . . . . . . 220 302 74 5 . 3 . . 1 . 11 . . . 20 . 7 Successful Hack 164 | . 23 . . 10 14 . 16 6 . 2 19 5 28 . . 24 . 5 . . . . . . . 12 Disable Machine 390 | . . 15 . . . . . 30 . . . 75 . . 30 15 . 135 . . . . . . 60 30 Anti-Garrison Action 3050 | . . . . . 200 . 250 . . . 450 150 650 . 550 . . . . . . . . . 800 . Destroy Structure 1419 | . 1 3 . . 51 1 30 26 . 23 225 28 178 1 88 22 . 84 8 . . . . 6 245 399 Lose Combat Pursuer 720 | . 30 45 . 30 15 . 75 30 . . 30 . . . 30 15 . 15 . . 60 . . 15 90 240 Influence Decreases 12783 | 5 407 340 219 122 57 579 184 969 532 68 330 1381 413 1295 409 1410 518 310 262 265 68 22 212 252 192 1962 Entered New Map 6132 | . . 32 139 18 17 323 84 469 346 . 120 805 353 1009 259 744 388 24 132 14 . 12 . 16 42 786 Time Decay 4791 | 5 367 278 80 94 . 246 . 490 186 48 . 486 . 286 . 446 130 286 130 191 68 10 212 166 . 586 Lost Part 1270 | . 40 30 . 10 40 10 100 10 . . 10 . 40 . 150 220 . . . . . . . 50 110 450 Lost Ally 590 | . . . . . . . . . . 20 200 90 20 . . . . . . 60 . . . 20 40 140 Squads Dispatched 71 | . 3 3 . 1 . 2 . 5 . 2 . 8 . 1 . 1 . 4 . . . . . 7 . 34 Investigation 6 | . 1 1 . . . . . 1 . . . 1 . . . . . 1 . . . . . 1 . . Extermination 16 | . . . . . . . . 3 . . . 2 . 1 . 1 . 2 . . . . . 2 . 5 Reinforcement 18 | . 2 2 . 1 . 1 . 1 . 2 . 2 . . . . . 1 . . . . . 2 . 4 Assault 28 | . . . . . . . . . . . . 3 . . . . . . . . . . . . . 25 Garrison 3 | . . . . . . 1 . . . . . . . . . . . . . . . . . 2 . . Intercept . | . . . . . . . . . . . . . . . . . . . . . . . . . . . Searches Triggered . | . . . . . . . . . . . . . . . . . . . . . . . . . . . Unchained Authorized 1 | . . . . . . . . . . . . . . . . . . . . . . . . . . 1 Construction Impeded 6 | . . . . . . . . . . 1 . 1 . . . . . 1 . . . . . . . 3 Haulers Reinforced . | . . . . . . . . . . . . . . . . . . . . . . . . . . . Active Scanning Responses . | . . . . . . . . . . . . . . . . . . . . . . . . . . . Cargo Convoy Interrupts . | . . . . . . . . . . . . . . . . . . . . . . . . . . . Stealth | -11 -10 -9 -9 -8 -8 -8 -8 -7 -7 -7 -7 -7 -7 -6 -6 -5 -5 -5 -4 -4 -4 -4 -3 -3 -3 -2 --------- Run | Yrd Mat Mat Min Mat Gar Mat Gar Fac Was Fac Gar Fac Gar Fac Gar Fac Was Fac Fac Upp Upp Zhi Pro Res Gar Res Distress Signals 11 | . 2 1 . . . 1 . . . . . . . . . . . 1 . . . . . . . 6 Communications Jammed 35 | . . . . . . . . . . . . . . . . 13 . . . . . . . 22 . . Distress Signals 32 | . . . . . . . . . . . . . . . . 13 . . . . . . . 19 . . Times Spotted 534 | . 28 20 2 7 18 15 32 23 . 5 20 30 28 1 21 22 6 13 1 17 5 . 13 25 30 152 Peak Tracking Total 17 | . 5 3 2 4 6 4 6 3 . 4 3 4 5 1 5 5 2 5 1 7 2 . 5 6 8 17 Tactical Retreats 36 | . 2 3 . 2 1 . 3 2 . . 1 . . . 2 1 . 1 . . 3 . . 1 4 10 Traps | -11 -10 -9 -9 -8 -8 -8 -8 -7 -7 -7 -7 -7 -7 -6 -6 -5 -5 -5 -4 -4 -4 -4 -3 -3 -3 -2 ------- Run | Yrd Mat Mat Min Mat Gar Mat Gar Fac Was Fac Gar Fac Gar Fac Gar Fac Was Fac Fac Upp Upp Zhi Pro Res Gar Res Traps Triggered 25 | . 2 . . . 2 . 4 2 . . 2 1 . . 3 2 . 1 . . . . . 2 1 3 Indirectly . | . . . . . . . . . . . . . . . . . . . . . . . . . . . Trap Hack Attempts . | . . . . . . . . . . . . . . . . . . . . . . . . . . . Triggered . | . . . . . . . . . . . . . . . . . . . . . . . . . . . Disarmed . | . . . . . . . . . . . . . . . . . . . . . . . . . . . Reprogrammed . | . . . . . . . . . . . . . . . . . . . . . . . . . . . Reused . | . . . . . . . . . . . . . . . . . . . . . . . . . . . Traps Extracted . | . . . . . . . . . . . . . . . . . . . . . . . . . . . Installed . | . . . . . . . . . . . . . . . . . . . . . . . . . . . Triggered . | . . . . . . . . . . . . . . . . . . . . . . . . . . . Machines | -11 -10 -9 -9 -8 -8 -8 -8 -7 -7 -7 -7 -7 -7 -6 -6 -5 -5 -5 -4 -4 -4 -4 -3 -3 -3 -2 ---------- Run | Yrd Mat Mat Min Mat Gar Mat Gar Fac Was Fac Gar Fac Gar Fac Gar Fac Was Fac Fac Upp Upp Zhi Pro Res Gar Res Machines Disabled 59 | . . 1 . . 3 . 4 2 . . 5 6 9 . 5 1 . 9 . 4 . . . . 8 2 Max in Single Turn 6 | . . 1 . . 1 . 1 1 . . 1 1 1 . 1 1 . 6 . 3 . . . . 1 1 Garrison Access 2 | . . . . . . . . . . . . 1 . . . . . 1 . . . . . . . . Garrison Relay 23 | . . . . . 2 . 2 . . . 5 . 7 . 3 . . . . . . . . . 4 . Machines Repaired . | . . . . . . . . . . . . . . . . . . . . . . . . . . . Machines Dismantled . | . . . . . . . . . . . . . . . . . . . . . . . . . . . Machines Sabotaged . | . . . . . . . . . . . . . . . . . . . . . . . . . . . Overloaded Fab Kills . | . . . . . . . . . . . . . . . . . . . . . . . . . . . Hacking | -11 -10 -9 -9 -8 -8 -8 -8 -7 -7 -7 -7 -7 -7 -6 -6 -5 -5 -5 -4 -4 -4 -4 -3 -3 -3 -2 --------- Run | Yrd Mat Mat Min Mat Gar Mat Gar Fac Was Fac Gar Fac Gar Fac Gar Fac Was Fac Fac Upp Upp Zhi Pro Res Gar Res Machines Accessed 65 | . 7 5 . 3 2 4 3 4 . 2 3 6 3 4 . 5 . 3 . . . 4 . 3 1 3 Terminals 37 | . 6 4 . 2 2 2 3 2 . . 3 2 3 1 . 3 . . . . . . . 2 1 1 Fabricators 3 | . . . . . . . . . . . . 1 . 1 . . . 1 . . . . . . . . Repair Stations 2 | . . . . . . 1 . . . . . . . . . . . . . . . . . . . 1 Recycling Units 5 | . 1 . . . . . . 1 . . . 1 . . . 1 . 1 . . . . . . . . Scanalyzers 7 | . . 1 . . . . . 1 . 1 . 1 . 1 . 1 . . . . . . . . . 1 Garrison Access 7 | . . . . 1 . 1 . . . 1 . 1 . 1 . . . 1 . . . . . 1 . . Total Hacks 143 | . 14 13 . 7 3 7 5 9 . 6 5 13 3 8 . 11 . 5 . . . 17 . 6 2 9 Successful 69 | . 7 3 . 3 1 2 1 2 . 5 2 6 2 3 . 5 . 4 . . . 17 . 1 1 4 Failed 70 | . 6 9 . 3 2 5 4 7 . . 3 7 1 5 . 6 . 1 . . . . . 5 1 5 Catastrophic 20 | . 1 1 . 1 1 2 2 1 . . 1 2 1 . . 3 . . . . . . . 1 1 2 Database Lockouts 4 | . 1 1 . 1 . . . . . 1 . . . . . . . . . . . . . . . . Manual 37 | . 6 11 . 5 . 3 . 4 . 1 . 2 . 3 . 1 . . . . . . . . 1 . Terminals 77 | . 13 11 . 5 3 5 5 5 . . 5 4 3 3 . 5 . . . . . . . 5 2 3 Fabricators 5 | . . . . . . . . . . . . 1 . 1 . . . 3 . . . . . . . . Repair Stations 3 | . . . . . . 1 . . . . . . . . . . . . . . . . . . . 2 Recycling Units 10 | . 1 . . . . . . 2 . . . 3 . . . 3 . 1 . . . . . . . . Scanalyzers 23 | . . 2 . . . . . 2 . 5 . 4 . 3 . 3 . . . . . . . . . 4 Garrison Access 8 | . . . . 2 . 1 . . . 1 . 1 . 1 . . . 1 . . . . . 1 . . Terminal Hacks 37 | . 6 1 . 2 1 . 1 1 . . 2 1 2 . . 2 . . . . . 17 . . 1 . Record 5 | . . . . . . . . . . . . . . . . . . . . . . 5 . . . . Part Schematic 5 | . . . . . . . . . . . . . . . . 1 . . . . . 4 . . . . Robot Analysis 8 | . 1 . . 2 . . . 1 . . . . . . . . . . . . . 4 . . . . Prototype ID Bank 4 | . . . . . . . . . . . . . . . . . . . . . . 4 . . . . Open Door 1 | . . . . . . . . . . . 1 . . . . . . . . . . . . . . . Open DSF 1 | . . . . . . . . . . . . 1 . . . . . . . . . . . . . . Level Access Points 1 | . 1 . . . . . . . . . . . . . . . . . . . . . . . . . Branch Access Points 2 | . . 1 . . . . . . . . . . . . . 1 . . . . . . . . . . Emergency Access Points 7 | . 3 . . . 1 . . . . . 1 . 1 . . . . . . . . . . . 1 . Zone Layout 1 | . 1 . . . . . . . . . . . . . . . . . . . . . . . . . Garrison Registry 1 | . . . . . . . . . . . . . 1 . . . . . . . . . . . . . Security Stations 1 | . . . . . . . 1 . . . . . . . . . . . . . . . . . . . Fabricator Hacks 3 | . . . . . . . . . . . . 1 . . . . . 2 . . . . . . . . Network Status 1 | . . . . . . . . . . . . 1 . . . . . . . . . . . . . . Load Schematic 1 | . . . . . . . . . . . . . . . . . . 1 . . . . . . . . Build 1 | . . . . . . . . . . . . . . . . . . 1 . . . . . . . . Repair Station Hacks 3 | . . . . . . 1 . . . . . . . . . . . . . . . . . . . 2 Scan Component 2 | . . . . . . 1 . . . . . . . . . . . . . . . . . . . 1 Repair 1 | . . . . . . . . . . . . . . . . . . . . . . . . . . 1 Recycling Unit Hacks 4 | . 1 . . . . . . 1 . . . 1 . . . . . 1 . . . . . . . . Report Inventory 3 | . 1 . . . . . . 1 . . . 1 . . . . . . . . . . . . . . Retrieve Components 1 | . . . . . . . . . . . . . . . . . . 1 . . . . . . . . Scanalyzer 15 | . . 2 . . . . . . . 4 . 2 . 2 . 3 . . . . . . . . . 2 Insert Component 1 | . . . . . . . . . . 1 . . . . . . . . . . . . . . . . Analyze 1 | . . . . . . . . . . 1 . . . . . . . . . . . . . . . . Retrieve Study 13 | . . 2 . . . . . . . 2 . 2 . 2 . 3 . . . . . . . . . 2 Garrison Access Hacks 7 | . . . . 1 . 1 . . . 1 . 1 . 1 . . . 1 . . . . . 1 . . Unlock Access 6 | . . . . 1 . 1 . . . 1 . 1 . 1 . . . . . . . . . 1 . . Seal Access 1 | . . . . . . . . . . . . . . . . . . 1 . . . . . . . . Unauthorized Hacks . | . . . . . . . . . . . . . . . . . . . . . . . . . . . Terminals . | . . . . . . . . . . . . . . . . . . . . . . . . . . . Fabricators . | . . . . . . . . . . . . . . . . . . . . . . . . . . . Repair Stations . | . . . . . . . . . . . . . . . . . . . . . . . . . . . Recycling Units . | . . . . . . . . . . . . . . . . . . . . . . . . . . . Scanalyzers . | . . . . . . . . . . . . . . . . . . . . . . . . . . . Garrison Access . | . . . . . . . . . . . . . . . . . . . . . . . . . . . Data Cores Recovered . | . . . . . . . . . . . . . . . . . . . . . . . . . . . Used . | . . . . . . . . . . . . . . . . . . . . . . . . . . . Hacking Detections 52 | . 7 5 . 2 2 2 3 4 . 3 2 6 3 2 . 5 . 1 . . . . . 2 1 2 Full Trace Events 6 | . 1 1 . . . . 1 . . . . 1 . . . . . 1 . . . . . 1 . . Feedback Events . | . . . . . . . . . . . . . . . . . . . . . . . . . . . Feedback Blocked . | . . . . . . . . . . . . . . . . . . . . . . . . . . . Robot Schematics Acquired . | . . . . . . . . . . . . . . . . . . . . . . . . . . . Robots Built . | . . . . . . . . . . . . . . . . . . . . . . . . . . . Authchips . | . . . . . . . . . . . . . . . . . . . . . . . . . . . Time . | . . . . . . . . . . . . . . . . . . . . . . . . . . . Total Robot Build Rating . | . . . . . . . . . . . . . . . . . . . . . . . . . . . Part Schematics Acquired 6 | . . . . . . . . . . 1 . . . . . 1 . . . . . 4 . . . . Parts Built 1 | . . . . . . . . . . . . . . . . . . 1 . . . . . . . . Authchips . | . . . . . . . . . . . . . . . . . . . . . . . . . . . Time 117 | . . . . . . . . . . . . . . . . . . 117 . . . . . . . . Total Part Build Rating 7 | . . . . . . . . . . . . . . . . . . 7 . . . . . . . . Part Studies Acquired 11 | . . 2 . . . . . . . 2 . 1 . 1 . 3 . . . . . . . . . 2 Parts Repaired 1 | . . . . . . . . . . . . . . . . . . . . . . . . . . 1 Time 68 | . . . . . . . . . . . . . . . . . . . . . . . . . . 68 Parts Recycled . | . . . . . . . . . . . . . . . . . . . . . . . . . . . Recycled Matter . | . . . . . . . . . . . . . . . . . . . . . . . . . . . Retrieved Matter . | . . . . . . . . . . . . . . . . . . . . . . . . . . . Retrieved Components 6 | . . . . . . . . . . . . . . . . . . 6 . . . . . . . . Parts Scanalyzed 1 | . . . . . . . . . . 1 . . . . . . . . . . . . . . . . Part Schematics Acquired 1 | . . . . . . . . . . 1 . . . . . . . . . . . . . . . . Parts Damaged . | . . . . . . . . . . . . . . . . . . . . . . . . . . . Bothacking | -11 -10 -9 -9 -8 -8 -8 -8 -7 -7 -7 -7 -7 -7 -6 -6 -5 -5 -5 -4 -4 -4 -4 -3 -3 -3 -2 ------------ Run | Yrd Mat Mat Min Mat Gar Mat Gar Fac Was Fac Gar Fac Gar Fac Gar Fac Was Fac Fac Upp Upp Zhi Pro Res Gar Res Used RIF Installer 6 | . . . . . 1 . 1 . . . 2 . 1 . . . . . . . . . . . 1 . Command Fork 1 | . . . . . . . 1 . . . . . . . . . . . . . . . . . . . Signal Jammer 1 | . . . . . . . . . . . 1 . . . . . . . . . . . . . . . Robot Detection 1 | . . . . . . . . . . . 1 . . . . . . . . . . . . . . . Patrol Navigation 1 | . . . . . . . . . . . . . 1 . . . . . . . . . . . . . Autooverride 1 | . . . . . . . . . . . . . . . . . . . . . . . . . 1 . Robots Hacked 38 | . . . . . . . . 1 . . . 7 2 . 1 . 6 4 . 4 . . 1 4 1 7 Non-combat 5 | . . . . . . . . 1 . . . 2 . . . . . 2 . . . . . . . . Combat 33 | . . . . . . . . . . . . 5 2 . 1 . 6 2 . 4 . . 1 4 1 7 Autooverrided 2 | . . . . . . . . . . . . . . . . . . . . . . . . . . 2 Robot Hacks Applied 39 | . . . . . . . . 1 . . . 8 3 . 1 . 7 4 . 4 . . 1 4 1 5 parse_system 8 | . . . . . . . . 1 . . . 3 1 . . . . 3 . . . . . . . . ignore_targets 5 | . . . . . . . . . . . . . . . . . 5 . . . . . . . . . find_garrison 1 | . . . . . . . . . . . . 1 . . . . . . . . . . . . . . amplify_resonance 8 | . . . . . . . . . . . . 3 1 . . . 2 . . 1 . . 1 . . . reboot_system 1 | . . . . . . . . . . . . 1 . . . . . . . . . . . . . . formatsys_high 16 | . . . . . . . . . . . . . 1 . 1 . . 1 . 3 . . . 4 1 5 Relay Couplers Released 90 | . . . . . 7 . 7 . . . 24 2 25 . 11 . . . . . . . . . 14 . Machine Destruction 86 | . . . . . 7 . 7 . . . 20 2 25 . 11 . . . . . . . . . 14 . Programmers 4 | . . . . . . . . . . . 4 . . . . . . . . . . . . . . . Attached 21 | . . . . . . . . . . . . 3 3 1 2 3 1 . . 2 . . . 1 3 2 Fabnet Peak Effective % . | . . . . . . . . . . . . . . . . . . . . . . . . . . . Robots Rewired 5 | . . . . . . . . . . . 5 . . . . . . . . . . . . . . . Allies Hacked 5 | . . . . . . . . . . . 1 1 . . 2 . . . . 1 . . . . . . Hacks Repelled . | . . . . . . . . . . . . . . . . . . . . . . . . . . . Allies | -11 -10 -9 -9 -8 -8 -8 -8 -7 -7 -7 -7 -7 -7 -6 -6 -5 -5 -5 -4 -4 -4 -4 -3 -3 -3 -2 -------- Run | Yrd Mat Mat Min Mat Gar Mat Gar Fac Was Fac Gar Fac Gar Fac Gar Fac Was Fac Fac Upp Upp Zhi Pro Res Gar Res Total Allies 52 | . . . . . . . . . 20 . 7 . 1 . 1 . . 2 . 5 . . . 5 2 9 Largest Group 20 | . . . . . . . . . 20 20 17 7 1 . 1 . . 2 . 4 . . . 3 2 4 Highest-Rated Group 499 | . . . . . . . . . 499 499 440 196 21 . 29 . . 58 . 188 . . . 141 94 232 Highest-Rated Ally 95 | . . . . . . . . . 35 35 95 59 21 . 29 . . 29 . 47 . . . 56 47 69 Total Orders 5 | . . . . . . . . . . . . . . . . . . . . . . . 3 1 . 1 ROAM 1 | . . . . . . . . . . . . . . . . . . . . . . . . . . 1 FOLLOW 1 | . . . . . . . . . . . . . . . . . . . . . . . 1 . . . EXPLORE 3 | . . . . . . . . . . . . . . . . . . . . . . . 2 1 . . Ally Attacks 326 | . . . . . . . . . . 47 153 70 4 . 3 . . 9 . 9 . . . 16 2 13 Total Damage 7711 | . . . . . . . . . . 1346 4078 1041 53 . 71 . . 131 . 280 . . . 251 75 385 Kills 53 | . . . . . . . . . . 13 26 10 . . . . . 1 . 2 . . . . . 1 Allies Corrupted 2 | . . . . . . . . . . . . . . . . . . 1 . . . . . 1 . . Allies Melted . | . . . . . . . . . . . . . . . . . . . . . . . . . . . Intel | -11 -10 -9 -9 -8 -8 -8 -8 -7 -7 -7 -7 -7 -7 -6 -6 -5 -5 -5 -4 -4 -4 -4 -3 -3 -3 -2 ------- Run | Yrd Mat Mat Min Mat Gar Mat Gar Fac Was Fac Gar Fac Gar Fac Gar Fac Was Fac Fac Upp Upp Zhi Pro Res Gar Res Active Infowar (turns) 12220 | 4 999 614 164 311 571 481 8 856 648 238 335 . . 605 917 . . . 231 125 . . 562 1050 1097 2404 Optics 2644 | . . . . . . . . . . . . . . 605 917 . . . . . . . . . . 1122 IFF 393 | . . . . . . . . . . . . . . . . . . . . . . . . . . 393 Terrain 3931 | . 287 . . . . . . . . . . . . . . . . . . . . . 562 1050 260 1772 Structural 5178 | . 437 614 164 311 571 481 8 856 648 238 335 . . . . . . . . . . . . . . 515 Seismic 279 | 4 275 . . . . . . . . . . . . . . . . . . . . . . . . . Decoding 1882 | . . . . . . . . . . . . . . . . . . . . . . . 193 1050 639 . Machine Analysis 73 | . . . . . . . . . . . . . . . . . . . . . . . . . . 73 Jamming 2330 | . . . . . . . . . . . . . . . . . . . 231 125 . . . 1050 924 . Robot Analysis Total 8 | . 1 . . 2 . . . 1 . . . . . . . . . . . . . 4 . . . . Derelict Logs Recovered 3 | . . . 1 . . . . . . . . . . . . . . . . 1 1 . . . . . Drone Launches 4 | . . . . . . . . . . . . . . . . . . . . . . . 2 2 . . Drone Recoveries 1 | . . . . . . . . . . . . . . . . . . . . . . . 1 . . . Decoded 0b10 Intel 57 | . . . . . . . . . . . . . . . . . . . . . . . . 36 21 . Items 57 | . . . . . . . . . . . . . . . . . . . . . . . . 36 21 . Exploration | -11 -10 -9 -9 -8 -8 -8 -8 -7 -7 -7 -7 -7 -7 -6 -6 -5 -5 -5 -4 -4 -4 -4 -3 -3 -3 -2 ------------- Run | Yrd Mat Mat Min Mat Gar Mat Gar Fac Was Fac Gar Fac Gar Fac Gar Fac Was Fac Fac Upp Upp Zhi Pro Res Gar Res Turns Passed 27386 | 72 1020 614 164 311 1358 530 1389 1286 648 238 1856 1261 2185 637 2385 1117 261 940 268 869 675 355 896 1050 2597 2404 Spaces Moved 12037 | 50 671 315 104 178 504 226 370 641 346 128 944 630 970 329 509 581 106 334 148 471 333 188 432 471 1041 1017 Core 61 | 1 . . . . . . . . . . . . . . 4 . . . . . . . . . . 56 Treads 7805 | . . . . . . 16 261 461 346 128 944 630 970 329 240 . 29 334 148 471 333 188 432 471 933 141 Legs 415 | . . . . . . . . . . . . . . . 118 10 . . . . . . . . . 287 Wheels 3582 | 49 671 315 104 178 504 210 109 180 . . . . . . . 544 77 . . . . . . . 108 533 Hover 174 | . . . . . . . . . . . . . . . 147 27 . . . . . . . . . . Flight . | . . . . . . . . . . . . . . . . . . . . . . . . . . . Fastest Speed 50 | 50 80 130 135 135 135 155 155 145 160 160 160 160 150 185 185 100 160 160 161 161 161 161 161 161 158 50 Average Speed 172 | 79 103 134 135 135 164 196 293 163 169 160 160 160 165 185 403 139 187 238 161 161 161 161 161 161 161 141 Slowest Speed 1500 | 80 135 135 135 135 180 560 560 400 240 160 160 160 185 185 1500 540 240 240 166 161 161 161 161 161 240 400 Overloaded Moves . | . . . . . . . . . . . . . . . . . . . . . . . . . . . Propulsion Burnouts . | . . . . . . . . . . . . . . . . . . . . . . . . . . . Robots Hopped . | . . . . . . . . . . . . . . . . . . . . . . . . . . . Potential Cave-ins . | . . . . . . . . . . . . . . . . . . . . . . . . . . . Cave-ins Triggered . | . . . . . . . . . . . . . . . . . . . . . . . . . . . Teleports 1 | . . . . . . . . . . . . . . . . . . . . . . . . . . 1 Exploration Rate (%) 43 | 3 95 35 32 17 40 18 52 17 96 6 94 20 93 11 47 13 86 11 4 66 49 60 79 15 77 38 Regions Visited 26 Branch Regions 5 Pre-discovered Areas 4 | . . . 1 . . . . . . . . . . . . . . . . . . 3 . . . . Known Exits Taken 9 | . 1 1 . 1 . 1 . . . 1 . 1 . 1 . . . . . . . . 1 1 . . Unknown Exits Taken 7 | 1 . . 1 . . . . . . . . . . . . . . 1 1 1 1 1 . . . . Scrap Searched 4 | . . . . . . . . . . . . . . . . . . . . 1 1 . 2 . . . Spaces Dug 141 | . 1 . . . 16 . . . . . 33 . 27 . 18 5 . . . . . . . . 28 13 Terrain Destroyed 568 | . 1 . . . 16 . 2 47 . . 36 25 31 1 77 11 . 43 5 19 2 . 35 1 70 146 Melee 119 | . 1 . . . 16 . . . . . 32 . 27 . 18 5 . . . . . . . . 15 5 Projectile 161 | . . . . . . . 2 12 . . 4 8 4 1 1 6 . 5 5 4 2 . 2 1 37 67 AOE 287 | . . . . . . . . 35 . . . 17 . . 58 . . 38 . 15 . . 32 . 18 74 Terrain Rammed . | . . . . . . . . . . . . . . . . . . . . . . . . . . . Walls Destroyed . | . . . . . . . . . . . . . . . . . . . . . . . . . . . Machines Disabled . | . . . . . . . . . . . . . . . . . . . . . . . . . . . Actions | -11 -10 -9 -9 -8 -8 -8 -8 -7 -7 -7 -7 -7 -7 -6 -6 -5 -5 -5 -4 -4 -4 -4 -3 -3 -3 -2 --------- Run | Yrd Mat Mat Min Mat Gar Mat Gar Fac Was Fac Gar Fac Gar Fac Gar Fac Was Fac Fac Upp Upp Zhi Pro Res Gar Res Total 16292 | 73 867 431 124 217 745 273 548 791 403 160 1129 811 1261 350 701 782 155 433 172 553 461 225 588 697 1686 1656 Wait 1723 | 8 85 38 19 4 10 6 58 30 22 31 39 103 65 . 42 78 3 42 . 38 122 . 109 143 388 240 Move 12018 | 49 670 314 103 177 503 226 369 641 345 128 943 630 969 329 508 581 105 333 147 470 332 187 431 471 1040 1017 Hop . | . . . . . . . . . . . . . . . . . . . . . . . . . . . Pick Up 228 | 6 19 21 . 7 13 4 13 16 4 . 11 7 21 3 9 5 4 5 4 3 1 7 2 6 14 23 Fast Attach 132 | 6 . . . . 2 1 4 9 3 . 2 . 1 4 9 12 5 4 3 1 . 7 2 7 17 33 Attach 116 | 1 6 5 . 3 4 . 7 3 . . 3 1 5 1 6 15 2 1 3 1 . 1 4 5 6 33 Detach 45 | . 1 . . . . . . 3 1 . 3 . . 1 . 5 3 . 3 . . 1 . 1 4 19 Swap 195 | . 7 1 . 1 17 7 14 14 7 1 5 10 16 2 14 6 1 2 1 12 . 2 5 6 20 24 Drop 231 | . 7 10 . 5 16 8 9 26 15 . 11 10 18 4 6 5 5 8 6 5 . 10 3 8 13 23 Fire 1099 | 3 69 42 2 20 49 21 63 47 1 . 33 47 74 2 52 66 27 37 5 22 6 . 31 43 111 226 Melee 413 | . 2 . . . 115 . 9 . 5 . 66 . 90 . 32 6 . . . . . 10 . . 73 5 Ram 7 | . 1 . . . . . . . . . . . . . . 1 . . . . . . . . . 5 Kick 5 | . . . . . . . . . . . . . . . . 2 . . . . . . . . . 3 Crush 17 | . . . . . . . . 2 . . . 3 2 4 . . . . . . . . . 3 . 3 Escape Stasis 45 | . . . . . 16 . 2 . . . 3 . . . 23 . . 1 . . . . . . . . Rewire 18 | . . . . . . . . . . . 10 . . . . . . . . 1 . . 1 4 . 2 Trap . | . . . . . . . . . . . . . . . . . . . . . . . . . . . Miscellaneous . | . . . . . . . . . . . . . . . . . . . . . . . . . . . Route ------- -11/Scrapyard -10/Materials (discovered 4 exits: *Mat x3 / [*Min]) -9/Materials (discovered 3 exits: *Mat / *Min x2) -9/Mines -8/Materials -8/Garrison -8/Materials -8/Garrison -7/Factory (discovered 2 exits: *Fac / [*Low]) -7/Waste -7/Factory -7/Garrison (discovered 3 exits: *Fac x3) -7/Factory (discovered 2 exits: [*Low] / Gar) -7/Garrison (discovered 3 exits: *Fac x3) -6/Factory -6/Garrison -5/Factory (discovered 2 exits: Upp x2) -5/Waste -5/Factory -4/Factory -4/Upper Caves -4/Upper Caves (discovered 2 exits: Res / *Zhi) -4/Zhirov -3/Proximity Caves -3/Research -3/Garrison (discovered 2 exits: *Res x2) -2/Research History --------- Turn | Location | Event 9 | -11/Scrapyard | Discovered new exit (range 15) 73 | -11/Scrapyard | Entered Materials 115 | -10/Materials | Discovered new exit (range 21) 148 | -10/Materials | Discovered new exit (range 16) 172 | -10/Materials | Identified exit to Materials 267 | -10/Materials | Central database locked down 304 | -10/Materials | Build established: Mutant 557 | -10/Materials | Core integrity fell below 50% 980 | -10/Materials | Core integrity fell below 20% 1093 | -10/Materials | Entered another Materials area 1093 | -9/Materials | Evolved 2 slots: Utility x2 1495 | -9/Materials | Discovered new exit (range 5) 1533 | -9/Materials | Discovered new exit (range 11) 1632 | -9/Materials | Central database locked down 1632 | -9/Materials | Identified exit to Mines 1707 | -9/Materials | Entered Mines 1770 | -9/Mines | Learned location of Storage (-8) 1843 | -9/Mines | Discovered new exit (range 7) 1871 | -9/Mines | Entered Materials 1871 | -8/Materials | Evolved 2 slots: Utility x1, Weapon x1 1888 | -8/Materials | Identified exit to Garrison 2079 | -8/Materials | Central database locked down 2182 | -8/Materials | Entered Garrison 2366 | -8/Garrison | Triggered checkpoint 2402 | -8/Garrison | Garrison Relay disabled 2546 | -8/Garrison | Installed Relay Interface Framework 2841 | -8/Garrison | Lost 4 parts (1n3u) 2964 | -8/Garrison | Discovered new exit (range 12) 3096 | -8/Garrison | Triggered checkpoint 3161 | -8/Garrison | Garrison Relay disabled 3523 | -8/Garrison | Build established: Scavenger-Tank 3540 | -8/Garrison | Entered Materials 3904 | -8/Materials | Build established: Tank 3936 | -8/Materials | Garrison activated, responded to threat 4070 | -8/Materials | Identified exit to Garrison 4070 | -8/Materials | Entered Garrison 4153 | -8/Garrison | Lost 8 parts (1p2n3u2w) 4288 | -8/Garrison | Expanded RIF knowledge: Command Fork 4376 | -8/Garrison | Triggered checkpoint 4387 | -8/Garrison | Triggered checkpoint 4466 | -8/Garrison | Core integrity fell below 50% 4596 | -8/Garrison | Triggered checkpoint 4700 | -8/Garrison | Garrison Relay disabled 4900 | -8/Garrison | Build established: Scavenger-Tank 5116 | -8/Garrison | Triggered checkpoint 5185 | -8/Garrison | Learned Factory security intel 5208 | -8/Garrison | Garrison Relay disabled 5238 | -8/Garrison | Triggered checkpoint 5411 | -8/Garrison | Discovered new exit (range 13) 5459 | -8/Garrison | Entered Factory 5459 | -7/Factory | Evolved 2 slots: Propulsion x2 6006 | -7/Factory | Discovered new exit (range 7) 6174 | -7/Factory | Build established: Bothacker-Gunner 6250 | -7/Factory | Discovered new exit (range 6) 6745 | -7/Factory | Sucked down chute 6745 | -7/Factory | Entered Waste 6746 | -7/Waste | Joined by Warlord forces that had cleared the area 6854 | -7/Waste | Found Damper Plating 7058 | -7/Waste | Found Prototype Device 7058 | -7/Waste | Identified Adv. EM Shield 7351 | -7/Waste | Discovered new exit (range 11) 7393 | -7/Waste | Entered Factory 7393 | -7/Factory | Accompanied by 20 allies 7400 | -7/Factory | Build established: Bothacker-Mutant 7421 | -7/Factory | Central database locked down 7601 | -7/Factory | Identified exit to Garrison 7631 | -7/Factory | Entered Garrison 7631 | -7/Garrison | Accompanied by 17 allies 7789 | -7/Garrison | Triggered checkpoint 7831 | -7/Garrison | Garrison Relay disabled 7834 | -7/Garrison | Lost 3 allies 7910 | -7/Garrison | Lost 3 allies 7966 | -7/Garrison | Triggered checkpoint 7973 | -7/Garrison | P-70 Sage assimilated allied A4-PEE(g) 8010 | -7/Garrison | Lost 5 allies 8019 | -7/Garrison | Triggered checkpoint 8089 | -7/Garrison | Garrison Relay disabled 8200 | -7/Garrison | Discovered new exit (range 10) 8209 | -7/Garrison | Found embedded Infiltrators 8315 | -7/Garrison | Triggered checkpoint 8413 | -7/Garrison | Expanded RIF knowledge: Robot Detection 8526 | -7/Garrison | Discovered new exit (range 10) 8547 | -7/Garrison | Triggered checkpoint 8629 | -7/Garrison | Triggered checkpoint 8637 | -7/Garrison | Garrison Relay disabled 8810 | -7/Garrison | Garrison Relay disabled 8815 | -7/Garrison | Triggered checkpoint 8995 | -7/Garrison | Triggered checkpoint 9064 | -7/Garrison | Garrison Relay disabled 9203 | -7/Garrison | Discovered new exit (range 13) 9239 | -7/Garrison | Expanded RIF knowledge: Signal Jamming 9487 | -7/Garrison | Entered Factory 9487 | -7/Factory | Accompanied by 7 allies 9541 | -7/Factory | Build established: Botlord-Mutant 9783 | -7/Factory | Lost 3 allies 9852 | -7/Factory | Build established: Botlord-Tank 10113 | -7/Factory | Discovered new exit (range 3) 10687 | -7/Factory | First assault squad dispatched 10748 | -7/Factory | Identified exit to Garrison 10748 | -7/Factory | Entered Garrison 11086 | -7/Garrison | Triggered checkpoint 11109 | -7/Garrison | Garrison Relay disabled 11406 | -7/Garrison | Build established: Botlord-Mutant 11441 | -7/Garrison | Triggered checkpoint 11732 | -7/Garrison | Discovered new exit (range 10) 11772 | -7/Garrison | Expanded RIF knowledge: Patrol Navigation 11808 | -7/Garrison | Triggered checkpoint 11817 | -7/Garrison | Build established: Bothacker-Mutant 11866 | -7/Garrison | Garrison Relay disabled 12040 | -7/Garrison | Triggered checkpoint 12120 | -7/Garrison | Discovered new exit (range 13) 12293 | -7/Garrison | Discovered new exit (range 22) 12293 | -7/Garrison | Discovered new exit (range 58) 12293 | -7/Garrison | Discovered new exit (range 34) 12308 | -7/Garrison | Triggered checkpoint 12388 | -7/Garrison | Garrison Relay disabled 12540 | -7/Garrison | Triggered checkpoint 12691 | -7/Garrison | Build established: Botlord-Mutant 12746 | -7/Garrison | Core integrity fell below 50% 12817 | -7/Garrison | Garrison Relay disabled 12825 | -7/Garrison | Garrison Relay disabled 12837 | -7/Garrison | Garrison Relay disabled 12845 | -7/Garrison | Garrison Relay disabled 12933 | -7/Garrison | Entered Factory 12933 | -6/Factory | Evolved 2 slots: Utility x2 13227 | -6/Factory | Build established: Botlord-Gunner 13570 | -6/Factory | Identified exit to Garrison 13570 | -6/Factory | Entered Garrison 13676 | -6/Garrison | Triggered checkpoint 13772 | -6/Garrison | Garrison Relay disabled 13875 | -6/Garrison | Garrison Relay disabled 13902 | -6/Garrison | Build established: Botlord-Mutant 13907 | -6/Garrison | Garrison Relay disabled 14274 | -6/Garrison | Triggered checkpoint 14282 | -6/Garrison | Spotted B-75 Beast 14285 | -6/Garrison | Triggered checkpoint 14318 | -6/Garrison | Destroyed B-75 Beast 14346 | -6/Garrison | Core integrity fell below 50% 14354 | -6/Garrison | Destroyed 8 combat bots 14373 | -6/Garrison | Lost 12 parts (1p3n3u5w) 14713 | -6/Garrison | Build established: Botlord-Gunner 15499 | -6/Garrison | Discovered new exit (range 15) 15609 | -6/Garrison | Build established: Botlord-Mutant 15728 | -6/Garrison | Triggered checkpoint 15955 | -6/Garrison | Entered Factory 15955 | -5/Factory | Evolved 2 slots: Propulsion x1, Utility x1 16033 | -5/Factory | Build established: Botlord-Gunner 16155 | -5/Factory | Lost 5 parts (1p1n1u2w) 16404 | -5/Factory | Build established: Botlord-Mutant 16503 | -5/Factory | Identified exit to Upper Caves 16731 | -5/Factory | Lost 3 parts (1u2w) 16785 | -5/Factory | Build established: Botlord-Gunner 17072 | -5/Factory | Sucked down chute 17072 | -5/Factory | Entered Waste 17087 | -5/Waste | EMP discharged 17087 | -5/Waste | System corruption reached 10% 17087 | -5/Waste | Spotted C-40 Crusher 17092 | -5/Waste | Lost 12 parts (5n3u4w) 17133 | -5/Waste | Spotted C-40 Crusher 17145 | -5/Waste | Spotted C-40 Crusher 17170 | -5/Waste | Spotted C-40 Crusher 17178 | -5/Waste | Spotted C-40 Crusher 17182 | -5/Waste | Spotted C-40 Crusher 17187 | -5/Waste | EMP discharged 17206 | -5/Waste | Discovered new exit (range 15) 17208 | -5/Waste | Build established: Botlord-Mutant 17220 | -5/Waste | Destroyed C-40 Crusher 17264 | -5/Waste | Destroyed C-40 Crusher 17281 | -5/Waste | Found Damper Plating 17285 | -5/Waste | Found Damper Plating 17287 | -5/Waste | EMP discharged 17333 | -5/Waste | Entered Factory 17614 | -5/Factory | Fabricated Hvy. Siege Treads (x1) 17652 | -5/Factory | Build established: Bothacker-Mutant 18166 | -5/Factory | Build established: Bothacker-Tank 18268 | -5/Factory | Discovered new exit (range 4) 18273 | -5/Factory | Entered another Factory area 18273 | -4/Factory | Evolved 2 slots: Utility x2 18478 | -4/Factory | Discovered new exit (range 8) 18541 | -4/Factory | Entered Upper Caves 18690 | -4/Upper Caves | Attracted the attention of an 0b10 base 18703 | -4/Upper Caves | P-70 Sage assimilated allied Veteran 7c 18745 | -4/Upper Caves | Lost 4 allies 18765 | -4/Upper Caves | Learned Research stockpile data 18821 | -4/Upper Caves | Encountered a Warlord checkpoint 18971 | -4/Upper Caves | Attracted the attention of an 0b10 checkpoint 19322 | -4/Upper Caves | Build established: Scavenger-Tank 19387 | -4/Upper Caves | Discovered new exit (range 14) 19410 | -4/Upper Caves | Entered another Upper Caves area 20044 | -4/Upper Caves | Attracted the attention of an 0b10 checkpoint 20057 | -4/Upper Caves | Identified exit to Research 20060 | -4/Upper Caves | Discovered new exit (range 9) 20085 | -4/Upper Caves | Entered Zhirov 20085 | -4/Zhirov | Discovered new exit (range 3) 20114 | -4/Zhirov | Met Zhirov 20145 | -4/Zhirov | Learned location of Quarantine (-3) 20145 | -4/Zhirov | Learned location of Testing (-2) 20145 | -4/Zhirov | Learned location of Command (-1) 20160 | -4/Zhirov | Zhirov requested help retrieving the SGEMP Prototype 20184 | -4/Zhirov | Found Alien Artifact 20184 | -4/Zhirov | Identified Integrated Reactor 20184 | -4/Zhirov | Installed Integrated Reactor, increased core energy generation (+10) 20208 | -4/Zhirov | Found Alien Artifact 20440 | -4/Zhirov | Entered Proximity Caves 20492 | -3/Proximity Caves | Spotted B-86 Titan 20541 | -3/Proximity Caves | Destroyed B-86 Titan 21318 | -3/Proximity Caves | Discovered exit to Research (range 12) 21336 | -3/Proximity Caves | Entered Research 21336 | -3/Research | Evolved 2 slots: Utility x2 22038 | -3/Research | Lost 3 allies 22305 | -3/Research | Lost 4 parts (3u1w) 22386 | -3/Research | Identified exit to Garrison 22386 | -3/Research | Entered Garrison 22576 | -3/Garrison | Build established: Mutant 22617 | -3/Garrison | H-XX Assembler disabled 22796 | -3/Garrison | Triggered checkpoint 22843 | -3/Garrison | Garrison Relay disabled 22958 | -3/Garrison | Spotted B-86 Titan 23039 | -3/Garrison | Destroyed B-86 Titan 23335 | -3/Garrison | Build established: Bothacker-Mutant 23597 | -3/Garrison | Triggered checkpoint 23606 | -3/Garrison | Triggered checkpoint 23753 | -3/Garrison | Build established: Bothacker-Tank 23891 | -3/Garrison | Garrison Relay disabled 23910 | -3/Garrison | Triggered checkpoint 23968 | -3/Garrison | Lost 3 parts (1n2u) 24032 | -3/Garrison | Discovered new exit (range 3) 24100 | -3/Garrison | Expanded RIF knowledge: Autooverride 24200 | -3/Garrison | Triggered checkpoint 24302 | -3/Garrison | Triggered checkpoint 24366 | -3/Garrison | Garrison Relay disabled 24476 | -3/Garrison | Discovered new exit (range 13) 24540 | -3/Garrison | Triggered checkpoint 24602 | -3/Garrison | Triggered checkpoint 24674 | -3/Garrison | Lost 7 parts (3n4u) 24698 | -3/Garrison | Garrison Relay disabled 24983 | -3/Garrison | Entered Research 24983 | -2/Research | Evolved 2 slots: Utility x2 25061 | -2/Research | Build established: Botlord-Mutant 25501 | -2/Research | Repaired Adv. Weapon Cycler 25761 | -2/Research | Build established: Botlord-Tank 25821 | -2/Research | Lost 4 allies 25878 | -2/Research | Lost 9 parts (3n2u4w) 25951 | -2/Research | Spotted B-90 Cyclops 25960 | -2/Research | Destroyed B-90 Cyclops 26233 | -2/Research | First assault squad dispatched 26241 | -2/Research | Build established: Botlord-Gunner 26335 | -2/Research | Unchained authorized (QV-33N) 26341 | -2/Research | System corruption reached 10% 26376 | -2/Research | Lost 3 allies 26613 | -2/Research | Found Prototype Launcher 26713 | -2/Research | Identified Tesla Bomb Launcher 26806 | -2/Research | High security lockdown imminent 26886 | -2/Research | High security lockdown engaged 27054 | -2/Research | Lost 3 parts (1p1u1w) 27136 | -2/Research | Spotted Executioner 27136 | -2/Research | Spotted Striker 27140 | -2/Research | Destroyed Executioner 27144 | -2/Research | Destroyed Striker 27196 | -2/Research | Found Prototype Processor 27196 | -2/Research | Identified Exp. Core Analyzer 27239 | -2/Research | Spotted Executioner 27243 | -2/Research | Spotted Striker 27243 | -2/Research | Spotted Executioner 27244 | -2/Research | Destroyed Executioner 27246 | -2/Research | Identified Transdimensional Reconstructor 27246 | -2/Research | Warped through subspace 27265 | -2/Research | Destroyed 15 combat bots 27274 | -2/Research | Lost 9 parts (1p2n3u3w) 27274 | -2/Research | Spotted Executioner 27274 | -2/Research | Spotted Striker 27283 | -2/Research | Core integrity fell below 50% 27283 | -2/Research | Destroyed Executioner 27287 | -2/Research | Destroyed Striker 27312 | -2/Research | Found Exp. Core Analyzer 27331 | -2/Research | Spotted B-90 Cyclops 27355 | -2/Research | Core integrity fell below 20% 27386 | -2/Research | Lost 15 parts (6n8u1w) 27387 | -2/Research | Destroyed by G-73 Enforcer with Phase Gun Last Messages --------------- 27353_ Penetrated by Slug. 27353_ Myomer Leg destroyed. 27354_ System corrupted: Matter fused (-9). 27355_ Dropped Huge Storage Unit. 27355_ Extracted 9 matter. 27355_ Enh. Biometal Leg destroyed. 27356_ ALERT: Heavy assault forces dispatched. 27356_ Penetrated by Slug. 27368_ >> Machine Analyzer network decryption results: 27368_ Recycling Unit x2 27368_ >> Machine Analyzer network decryption results: 27368_ DSF Access x1 27368_ Terminal x1 27373_ >> Machine Analyzer network decryption results: 27373_ Scanalyzer x1 27386_ Relay Coupler [Sentry] destroyed. 27387_ System corrupted: Heat flow error (+245). 27387_ C-45 Heavy ARC bursts open, deploying its payload. 27387_ G-73 Enforcer unfolds itself. 27387_ I-47 Archangel unfolds itself. Map ----- +----------------------------------------------------+ | ???????????????????????????????????????? + ? | | ????????????????????????????????????????### ? | | ??????????????????????????????#???? ??### ? | | ??????????????????????????????????? ???###??#### | | ??????????????????????????????????? #???????#### | | ??????????????????????????????????? #??????????? | | ??????????????????????????????????? #???????#??? | | ??????????????????????????????????? #??????????? | | ??????????????????????????????????# #??????????? | | ??????????????????????????????????# #??????????? | | ??????????????????????????????????# #??????????? | | ??????????????????????????????????# #??????????? | | ??????????????????????????????????# +??????????? | | ??????????????????????????????????# #??????????? | | ??????????????????????????????????# #??????????? | | ??????????????????????????????????# #??????????? | | ??????????????????????????????????# #??????????? | | ??????????????????????????????????+ #??????????? | | ????????????????????????########### #??????????? | | ????????????????????????# # #??????????? | | ????????????????????????# # #?????"""??? | | ????????????????????????# g # #??????T"??? | | ????????????????????????# g%g + +?????"""??? | | ????????????????????????# p ig # #??????????? | | ????????????????????????# "" # #??????????? | | ????????????????????????#@ S"" # #??????????? | | ????????????????????????# "" # #??????????? | | ????????????????????????########### #??????????? | | ?????????????????????????###??????# #??????????? | | ?????????????????????????# ????# #??????????? | | ?????????????????????????# ??# g############ | | ?????????????????????????# "" # g | | ?????????????????????????# """ + g | | ???????????????????????""" T" # g g | | ??????????????????????#"Y """??# #########+## | | ??????????????????????#""" ""???# #??? # | | ????????????????????????## ??????# #????????? # | | ?????????????????????????#????????# #????????? # | | ??????????????????????????????????# #????????? # | | ??????????????????????????????????# ############ | | ??????????????????????????????????# gg | | ?????????????????????""""?????????+ | | ?????????????????????""""?????????# | | ?????????????????????""""?????????## #####+####### | | ?????????????????????""""??????????# #??? ? ### | | ?????????????????????""""??????????# #??? ????## | | ?????????????????????""""??????????# #?? ????? | | ?????????????????????""""?????????? #?? ????? | | ?????????????????????""""?????????? #? ] ???? | | ??????????????????????????????????? #? ???# | +----------------------------------------------------+ Best States ------------- Heat Dissipation 113 Energy Generation 39 Energy Capacity 350 Matter Stores 300 Matter Capacity 300 Sight Range 22 Terrain Scan Range 20 Terrain Scan Density 10 Jamming Range 16 Armor Coverage 3500 Resistance: TH 10 Resistance: EX 25 Resistance: EM 90 Core Shielding 30 Propulsion Shielding 90 Weapon Cycling 25 Melee Speed Boost 20 Phase Shifting 15 Evasion (%) 55 Targeting Accuracy 16 Target Analysis 8 Core Analysis 12 Recoil Reduction 5 Kinecelleration 40 Offensive Hacking 12 Defensive Hacking 26 Relay Coupler Types 4 Relay Coupler Value 108 Authchip Count 4 Item Schematics ----------------- Hvy. Siege Treads | -7/Factory | Scanalyzed Imp. Antigrav System | -5/Factory | Hacked Assault Drone Bay | -4/Zhirov | Free Exp. Heat Sink | -4/Zhirov | Free Exp. Optical Array | -4/Zhirov | Free Imp. Arc Thrower | -4/Zhirov | Free Robot Schematics ------------------ None Fabricated ------------ Hvy. Siege Treads | x1 | -5/Factory Repaired ---------- Adv. Weapon Cycler | 16% | -2/Research Studied --------- Lgt. Assault Rifle | -9/Materials | Hacked Com. Wheel | -9/Materials | Hacked Adv. Treads | -7/Factory | Hacked Gauss Cannon | -7/Factory | Hacked Remote Datajack | -7/Factory | Hacked Coil Gun | -6/Factory | Hacked Wheel | -5/Factory | Hacked Gauss Rifle | -5/Factory | Hacked Great Axe | -5/Factory | Hacked Hvy. Treads | -2/Research | Hacked Arm. Huge Wheel | -2/Research | Hacked Alien Tech Used ----------------- Integrated Reactor Transdimensional Reconstructor Achievements -------------- Error 47 Factory Defaults Hackerman Hydra No Signal Satisfying The Better Part Of Valor Challenges ------------ None Game ------ Seed TachyonSurveybotStabilizer Manual? 0 Play Time 04:00:12 Cumulative 235.5 hours Start 2026.01.18 @ 12:30:44 End 2026.01.18 @ 16:46:19 Sessions 1 Manual Loads 0 Difficulty Rogue Special Mode None Game No. 174 Rogue 48 Adventurer 47 Explorer 79 Win Type - Total 35 Types 25/2/7/1/0/0/0/0/0/0 Lore% 58 Gallery% 70 Achievement% 50 Wizard Run 0 Options --------- Layout 0 ASCII 0 Keyboard 1 Movement Numpad Keybinds 0 Fullscreen 2 Font 18/SmallcapsGlow Map View 76x50 Zoom Use 0% Tactical HUD 1 Map Filters NONE Filters NONE Steam 1 RUN: 9d9f69b5-94cb-438e-bea1-2d986d989c99